fUST/lending_fUST_20250731
["ID","MTS","AMOUNT","RATE_DAILY","PERIOD"]
[376342702,1753942707632,5000.0,0.0001885,2]
[376342703,1753942724258,5000.0,0.0001885,2]
[376342704,1753942741398,5000.0,0.0001885,2]
[376342705,1753942757658,5000.0,0.0001885,2]
[376342706,1753942774048,5000.0,0.0001885,2]
[376342707,1753942789545,5000.0,0.0001885,2]
[376342708,1753942807183,5000.0,0.0001885,2]
[376342709,1753942823004,5000.0,0.0001885,2]
[376342710,1753942838871,5000.0,0.0001885,2]
[376342712,1753942849550,-178.26041527,0.00018978,2]
[376342713,1753942849580,-353.14650746,0.00018981,2]
[376342714,1753942849611,-560.0,0.00018998,2]
[376342715,1753942849647,-262.29369003,0.00018999,2]
[376342716,1753942849678,-500.0,0.00018999,2]
[376342717,1753942849712,-500.0,0.00018999,2]
[376342718,1753942849743,-500.0,0.00018999,2]
[376342719,1753942849775,-500.0,0.00018999,2]
[376342720,1753942849805,-500.0,0.00018999,2]
[376342721,1753942849835,-500.0,0.00018999,2]
[376342722,1753942849864,-500.0,0.00018999,2]
[376342723,1753942850074,-500.0,0.00018999,2]
[376342724,1753942850105,-387.47677564,0.00018999,2]
[376342725,1753942850140,-372.5786709,0.00018999,2]
[376342726,1753942850171,-500.0,0.00018999,2]
[376342727,1753942850204,-351.1230634,0.00018999,2]
[376342728,1753942850234,-500.0,0.00018999,2]
[376342729,1753942850265,-500.0,0.00018999,2]
[376342730,1753942850295,-500.0,0.00018999,2]
[376342731,1753942850323,-579.09555261,0.00018999,2]
[376342732,1753942850353,-500.0,0.00018999,2]
[376342733,1753942850382,-143.6572143,0.00018999,2]
[376342734,1753942850687,-332.1374463,0.00018999,2]
[376342735,1753942850719,-500.0,0.00018999,2]
[376342736,1753942850751,-500.0,0.00018999,2]
[376342737,1753942850782,-500.0,0.00018999,2]
[376342738,1753942850814,-500.0,0.00018999,2]
[376342739,1753942850846,-299.82205679,0.00018999,2]
[376342740,1753942850877,-325.61678208,0.00018999,2]
[376342741,1753942850907,-500.0,0.00018999,2]
[376342742,1753942850939,-500.0,0.00018999,2]
[376342743,1753942850970,-500.0,0.00018999,2]
[376342744,1753942851000,-500.0,0.00018999,2]
[376342745,1753942851278,-689.43471717,0.00018999,2]
[376342746,1753942851311,-689.43471717,0.00018999,2]
[376342747,1753942851342,-689.43471717,0.00018999,2]
[376342748,1753942851374,-689.43471717,0.00018999,2]
[376342749,1753942851405,-689.43471717,0.00018999,2]
[376342750,1753942851437,-689.43471717,0.00018999,2]
[376342751,1753942851469,-689.43471717,0.00018999,2]
[376342752,1753942851656,-689.43471717,0.00018999,2]
[376342753,1753942851687,-689.43471717,0.00018999,2]
[376342754,1753942851717,-730.8008002,0.00018999,2]
[376342755,1753942851747,-730.8008002,0.00018999,2]
[376342756,1753942851777,-730.8008002,0.00018999,2]
[376342757,1753942851806,-730.8008002,0.00018999,2]
[376342758,1753942851836,-665.05392952,0.00018999,2]
[376342759,1753942852175,-65.74687068,0.00018999,2]
[376342760,1753942854835,5000.0,0.0001885,2]
[376342761,1753942860796,-7562.10654965,0.00019,2]
[376342762,1753942861194,-10000.0,0.00019,2]
[376342763,1753942861463,-10000.0,0.00019,2]
[376342764,1753942861842,-10000.0,0.00019,2]
[376342765,1753942861977,-10000.0,0.00019,2]
[376342766,1753942863370,-223.0,0.00018999,2]
[376342767,1753942863416,-9554.0,0.00019,2]
[376342768,1753942863644,-10000.0,0.00019,2]
[376342769,1753942863930,-10000.0,0.00019,2]
[376342770,1753942864663,-10000.0,0.00019,2]
[376342771,1753942864972,-10000.0,0.00019,2]
[376342772,1753942865264,-10000.0,0.00019,2]
[376342773,1753942865584,-10000.0,0.00019,2]
[376342774,1753942865863,-10000.0,0.00019,2]
[376342775,1753942866165,-10000.0,0.00019,2]
[376342776,1753942866454,-10000.0,0.00019,2]
[376342777,1753942866721,-10000.0,0.00019,2]
[376342778,1753942866973,-10000.0,0.00019,2]
[376342779,1753942867266,-10000.0,0.00019,2]
[376342780,1753942867537,-10000.0,0.00019,2]
[376342781,1753942867944,-10000.0,0.00019,2]
[376342782,1753942868236,-10000.0,0.00019,2]
[376342783,1753942868507,-10000.0,0.00019,2]
[376342785,1753942868844,1484.64,0.0001885,2]
[376342786,1753942869027,-10000.0,0.00019,2]
[376342787,1753942869320,-10000.0,0.00019,2]
[376342788,1753942869558,-10000.0,0.00019,2]
[376342789,1753942869820,-10000.0,0.00019,2]
[376342790,1753942870066,-10000.0,0.00019,2]
[376342791,1753942870340,-10000.0,0.00019,2]
[376342792,1753942870628,178.33572694,0.0001885,2]
[376342793,1753942870655,4821.66427306,0.0001885,2]
[376342794,1753942870673,-10000.0,0.00019,2]
[376342795,1753942870920,-10000.0,0.00019,2]
[376342796,1753942871207,-10000.0,0.00019,2]
[376342797,1753942871478,-10000.0,0.00019,2]
[376342798,1753942871716,-10000.0,0.00019,2]
[376342799,1753942871998,-10000.0,0.00019,2]
[376342800,1753942872268,-10000.0,0.00019,2]
[376342801,1753942872512,-10000.0,0.00019,2]
[376342802,1753942872777,-10000.0,0.00019,2]
[376342803,1753942873052,-10000.0,0.00019,2]
[376342804,1753942873330,-10000.0,0.00019,2]
[376342805,1753942873608,-10000.0,0.00019,2]
[376342806,1753942873890,-10000.0,0.00019,2]
[376342807,1753942874171,-10000.0,0.00019,2]
[376342808,1753942874504,-10000.0,0.00019,2]
[376342809,1753942874780,-10000.0,0.00019,2]
[376342810,1753942875063,-10000.0,0.00019,2]
[376342811,1753942875326,-10000.0,0.00019,2]
[376342812,1753942875574,-10000.0,0.00019,2]
[376342813,1753942875864,-10000.0,0.00019,2]
[376342814,1753942876136,-10000.0,0.00019,2]
[376342815,1753942876478,-10000.0,0.00019,2]
[376342816,1753942876785,-10000.0,0.00019,2]
[376342817,1753942877087,-10000.0,0.00019,2]
[376342818,1753942877392,-10000.0,0.00019,2]
[376342819,1753942877672,-10000.0,0.00019,2]
[376342820,1753942877932,-10000.0,0.00019,2]
[376342821,1753942878166,-10000.0,0.00019,2]
[376342822,1753942878468,-10000.0,0.00019,2]
[376342823,1753942878758,-10000.0,0.00019,2]
[376342824,1753942879035,-10000.0,0.00019,2]
[376342825,1753942879310,-10000.0,0.00019,2]
[376342826,1753942879552,-10000.0,0.00019,2]
[376342827,1753942879818,-10000.0,0.00019,2]
[376342828,1753942880087,-10000.0,0.00019,2]
[376342829,1753942880399,-10000.0,0.00019,2]
[376342830,1753942880716,-10000.0,0.00019,2]
[376342831,1753942881111,-3524.97435608,0.00019,2]
[376342832,1753942881139,-2950.05128784,0.00019,2]
[376342833,1753942886696,5000.0,0.00019001,2]
[376342835,1753942894674,5000.0,0.00019001,2]
[376342836,1753942905102,5000.0,0.00019001,2]
[376342837,1753942913650,1958.32844434,0.00019001,2]
[376342838,1753942922983,3041.67155566,0.00019001,2]
[376342839,1753942923722,-269.22589444,0.00019001,2]
[376342840,1753942927205,-302.60665372,0.00018906,2]
[376342841,1753942936839,1253.574261,0.00018431,2]
[376342842,1753942937160,548.963852,0.00018506,2]
[376342843,1753942937521,210.538379,0.00018522,2]
[376342844,1753942938523,659.69322457,0.00018797,2]
[376342845,1753942950735,230.704085,0.00013699,2]
[376342847,1753942982284,-1689.1025499,0.00019001,2]
[376342848,1753942984110,2338.09738924,0.00018995,2]
[376342849,1753942998075,4283.69751096,0.00019001,2]
[376342850,1753943003569,-233.14301939,0.000189,2]
[376342851,1753943003602,-716.30248904,0.00019001,2]
[376342852,1753943013715,5000.0,0.00019001,2]
[376342853,1753943031540,3101.10898314,0.00019001,2]
[376342854,1753943031565,1898.89101686,0.00019001,2]
[376342855,1753943047654,5000.0,0.00019001,2]
[376342856,1753943064318,3101.10898314,0.00019001,2]
[376342857,1753943064343,1898.89101686,0.00019001,2]
[376342858,1753943080973,5000.0,0.00019001,2]
[376342859,1753943097276,3101.10898314,0.00019001,2]
[376342860,1753943097302,1898.89101686,0.00019001,2]
[376342862,1753943107937,7097.3989002,0.0001836,2]
[376342863,1753943113295,1003.71008294,0.00019001,2]
[376342864,1753943113322,3996.28991706,0.00019001,2]
[376342865,1753943130183,5000.0,0.00019001,2]
[376342866,1753943147863,1003.71008294,0.00019001,2]
[376342867,1753943147894,3996.28991706,0.00019001,2]
[376342868,1753943164387,5000.0,0.00019001,2]
[376342869,1753943180321,1003.71008294,0.00019001,2]
[376342870,1753943180348,3996.28991706,0.00019001,2]
[376342871,1753943196423,5000.0,0.00019001,2]
[376342872,1753943211903,1003.71008294,0.00019001,2]
[376342873,1753943211933,3996.28991706,0.00019001,2]
[376342874,1753943227779,5000.0,0.00019001,2]
[376342875,1753943233535,433.5981484,0.00018425,2]
[376342876,1753943240531,482.949781,0.00018797,2]
[376342877,1753943240980,87.16215354,0.00018836,2]
[376342878,1753943241007,449.46532284,0.00018836,2]
[376342879,1753943243467,5000.0,0.00019001,2]
[376342880,1753943258831,4550.53467716,0.00019001,2]
[376342881,1753943258859,449.46532284,0.00019001,2]
[376342882,1753943268934,9090.65343188,0.00018,2]
[376342883,1753943272330,1000.0,0.00023,30]
[376342884,1753943275412,459.88124528,0.00019001,2]
[376342885,1753943275445,4540.11875472,0.00019001,2]
[376342886,1753943290929,5000.0,0.00019001,2]
[376342891,1753943304233,155.42867959,0.000189,2]
[376342892,1753943306913,304.45256569,0.00019001,2]
[376342893,1753943306943,4695.54743431,0.00019001,2]
[376342894,1753943311686,5304.45256569,0.00019001,2]
[376342895,1753943311711,1027.85743431,0.00019001,2]
[376342898,1753943322542,5000.0,0.00019001,2]
[376342899,1753943337954,3972.14256569,0.00019001,2]
[376342900,1753943337984,1027.85743431,0.00019001,2]
[376342901,1753943354028,5000.0,0.00019001,2]
[376342902,1753943370566,3972.14256569,0.00019001,2]
[376342903,1753943370592,1027.85743431,0.00019001,2]
[376342904,1753943387477,5000.0,0.00019001,2]
[376342905,1753943405664,3972.14256569,0.00019001,2]
[376342906,1753943405692,1027.85743431,0.00019001,2]
[376342907,1753943421880,5000.0,0.00019001,2]
[376342908,1753943422085,1046.148846,0.00018358,2]
[376343064,1753943437518,2925.99371969,0.00019001,2]
[376343065,1753943437544,2074.00628031,0.00019001,2]
[376343108,1753943439175,-178.33572694,0.00019161,2]
[376343111,1753943439185,-1493.89,0.00019178,2]
[376343113,1753943439195,-460.0,0.00019178,2]
[376343115,1753943439204,-816.61,0.00019178,2]
[376343117,1753943439213,-460.0,0.00019178,2]
[376343119,1753943439222,-860.91,0.00019178,2]
[376343121,1753943439231,-460.0,0.00019178,2]
[376343123,1753943439241,-579.49,0.00019178,2]
[376343125,1753943439250,-460.0,0.00019178,2]
[376343127,1753943439259,-460.0,0.00019178,2]
[376343129,1753943439268,-460.0,0.00019178,2]
[376343131,1753943439277,-460.0,0.00019178,2]
[376343133,1753943439287,-460.0,0.00019178,2]
[376343135,1753943439296,-740.27,0.00019178,2]
[376343137,1753943439305,-660.69,0.00019178,2]
[376343139,1753943439315,-460.0,0.00019178,2]
[376343141,1753943439324,-460.0,0.00019178,2]
[376343143,1753943439336,-462.67934088,0.00019178,2]
[376343145,1753943439345,-460.0,0.00019178,2]
[376343147,1753943439355,-460.0,0.00019178,2]
[376343148,1753943439364,-460.0,0.00019178,2]
[376343149,1753943439373,-460.0,0.00019178,2]
[376343150,1753943439383,-460.0,0.00019178,2]
[376343151,1753943439391,-460.0,0.00019178,2]
[376343152,1753943439400,-460.0,0.00019178,2]
[376343153,1753943439410,-460.0,0.00019178,2]
[376343154,1753943439419,-1615.41,0.00019178,2]
[376343155,1753943439428,-460.0,0.00019178,2]
[376343156,1753943439437,-460.0,0.00019178,2]
[376343157,1753943439447,-460.0,0.00019178,2]
[376343158,1753943439456,-460.0,0.00019178,2]
[376343159,1753943439465,-177.779812,0.00019178,2]
[376343160,1753943439474,-42777.4823583,0.00019178,2]
[376343161,1753943439483,-155.97786337,0.00019252,2]
[376343162,1753943439493,-739.689917,0.00019352,2]
[376343163,1753943439502,-1636.42,0.0001941,3]
[376343164,1753943439511,-818.21,0.0001941,3]
[376343165,1753943439520,-409.11,0.0001941,3]
[376343166,1753943439529,-204.55,0.0001941,3]
[376343167,1753943439539,-613.69,0.0001941,3]
[376343168,1753943439549,-300.54,0.0001941,3]
[376343169,1753943439558,-150.27,0.0001941,3]
[376343170,1753943439567,-450.83,0.0001941,3]
[376343171,1753943439576,-460.0,0.00019419,2]
[376343172,1753943439586,-460.0,0.00019419,2]
[376343173,1753943439595,-460.0,0.00019419,2]
[376343174,1753943439604,-284.59094366,0.00019419,2]
[376343175,1753943439614,-464.2594474,0.00019419,2]
[376343176,1753943439623,-471.15754207,0.00019419,2]
[376343177,1753943439632,-460.0,0.00019419,2]
[376343178,1753943439642,-460.0,0.00019419,2]
[376343179,1753943439662,-460.0,0.00019419,2]
[376343180,1753943439672,-183.60558302,0.00019419,2]
[376343181,1753943439682,-500.0,0.00019419,2]
[376343182,1753943439692,-500.0,0.00019419,2]
[376343183,1753943439701,-500.0,0.00019419,2]
[376343184,1753943439711,-500.0,0.00019419,2]
[376343185,1753943439720,-500.0,0.00019419,2]
[376343186,1753943439729,-500.0,0.00019419,2]
[376343187,1753943439739,-163.97718451,0.00019419,2]
[376343188,1753943439749,-500.0,0.00019419,2]
[376343189,1753943439759,-500.0,0.00019419,2]
[376343191,1753943439769,-500.0,0.00019419,2]
[376343193,1753943439779,-500.0,0.00019419,2]
[376343194,1753943439788,-460.0,0.00019419,2]
[376343195,1753943439798,-311.09133964,0.00019419,2]
[376343196,1753943439808,-500.0,0.00019419,2]
[376343197,1753943439818,-500.0,0.00019419,2]
[376343198,1753943439828,-500.0,0.00019419,2]
[376343199,1753943439838,-460.0,0.00019419,2]
[376343201,1753943439848,-1003.30667379,0.00019419,2]
[376343203,1753943439858,-460.0,0.00019419,2]
[376343205,1753943439868,-461.8824301,0.00019419,2]
[376343207,1753943439878,-460.0,0.00019419,2]
[376343209,1753943439888,-460.0,0.00019419,2]
[376343211,1753943439899,-500.0,0.00019419,2]
[376343213,1753943439909,-500.0,0.00019419,2]
[376343215,1753943439919,-500.0,0.00019419,2]
[376343217,1753943439928,-500.0,0.00019419,2]
[376343219,1753943439939,-500.0,0.00019419,2]
[376343221,1753943439949,-500.0,0.00019419,2]
[376343223,1753943439959,-500.0,0.00019419,2]
[376343225,1753943439969,-304.976256,0.00019419,2]
[376343227,1753943439978,-500.0,0.00019419,2]
[376343229,1753943439988,-460.0,0.00019419,2]
[376343232,1753943439998,-461.52218759,0.00019419,2]
[376343234,1753943440008,-460.0,0.00019419,2]
[376343236,1753943440018,-460.0,0.00019419,2]
[376343238,1753943440027,-467.85927427,0.00019419,2]
[376343240,1753943440038,-460.0,0.00019419,2]
[376343242,1753943440047,-460.0,0.00019419,2]
[376343244,1753943440057,-460.0,0.00019419,2]
[376343246,1753943440066,-460.0,0.00019419,2]
[376343248,1753943440076,-500.0,0.00019419,2]
[376343250,1753943440087,-250.0,0.00019419,2]
[376343252,1753943440096,-460.0,0.00019419,2]
[376343254,1753943440105,-460.0,0.00019419,2]
[376343256,1753943440115,-460.0,0.00019419,2]
[376343258,1753943440124,-460.0,0.00019419,2]
[376343260,1753943440134,-460.0,0.00019419,2]
[376343262,1753943440144,-261.47241748,0.00019419,2]
[376343264,1753943440155,-460.0,0.00019419,2]
[376343266,1753943440165,-597.75095042,0.00019419,2]
[376343268,1753943440174,-460.0,0.00019419,2]
[376343270,1753943440184,-460.0,0.00019419,2]
[376343272,1753943440193,-460.0,0.00019419,2]
[376343273,1753943440202,-460.0,0.00019419,2]
[376343274,1753943440212,-177.56340502,0.00019419,2]
[376343275,1753943440221,-460.0,0.00019419,2]
[376343276,1753943440231,-460.0,0.00019419,2]
[376343277,1753943440240,-460.0,0.00019419,2]
[376343278,1753943440251,-470.83558964,0.00019419,2]
[376343279,1753943440260,-460.0,0.00019419,2]
[376343280,1753943440269,-460.0,0.00019419,2]
[376343281,1753943440283,-462.37232196,0.00019419,2]
[376343282,1753943440292,-460.0,0.00019419,2]
[376343283,1753943440302,-460.0,0.00019419,2]
[376343284,1753943440312,-353.20146912,0.00019419,2]
[376343285,1753943440322,-460.0,0.00019419,2]
[376343286,1753943440332,-342.5742283,0.00019419,2]
[376343287,1753943440341,-460.0,0.00019419,2]
[376343288,1753943440351,-460.0,0.00019419,2]
[376343289,1753943440361,-460.0,0.00019419,2]
[376343290,1753943440370,-460.0,0.00019419,2]
[376343291,1753943440380,-463.42854083,0.00019419,2]
[376343292,1753943440390,-460.0,0.00019419,2]
[376343293,1753943440399,-460.0,0.00019419,2]
[376343294,1753943440410,-461.57064845,0.00019419,2]
[376343295,1753943440419,-466.55274193,0.00019419,2]
[376343296,1753943440430,-460.0,0.00019419,2]
[376343297,1753943440440,-460.0,0.00019419,2]
[376343298,1753943440450,-460.0,0.00019419,2]
[376343299,1753943440459,-460.0,0.00019419,2]
[376343300,1753943440469,-460.0,0.00019419,2]
[376343301,1753943440479,-275.36149441,0.00019419,2]
[376343302,1753943440489,-460.0,0.00019419,2]
[376343303,1753943440499,-460.0,0.00019419,2]
[376343304,1753943440509,-459.9788206,0.00019419,2]
[376343305,1753943440518,-460.0,0.00019419,2]
[376343306,1753943440529,-460.0,0.00019419,2]
[376343307,1753943440539,-460.0,0.00019419,2]
[376343308,1753943440548,-460.0,0.00019419,2]
[376343309,1753943440558,-480.76886307,0.00019419,2]
[376343310,1753943440569,-460.0,0.00019419,2]
[376343311,1753943440579,-460.0,0.00019419,2]
[376343312,1753943440589,-438.75644438,0.00019419,2]
[376343313,1753943440598,-319.6297667,0.00019419,2]
[376343314,1753943440608,-461.36199953,0.00019419,2]
[376343315,1753943440619,-460.0,0.00019419,2]
[376343316,1753943440629,-460.0,0.00019419,2]
[376343317,1753943440639,-460.95519293,0.00019419,2]
[376343319,1753943440649,-460.0,0.00019419,2]
[376343320,1753943440660,-460.0,0.00019419,2]
[376343322,1753943440669,-460.0,0.00019419,2]
[376343323,1753943440679,-460.0,0.00019419,2]
[376343324,1753943440689,-460.0,0.00019419,2]
[376343325,1753943440698,-460.0,0.00019419,2]
[376343326,1753943440708,-460.0,0.00019419,2]
[376343327,1753943440718,-460.0,0.00019419,2]
[376343328,1753943440727,-460.0,0.00019419,2]
[376343329,1753943440739,-460.0,0.00019419,2]
[376343330,1753943440748,-460.0,0.00019419,2]
[376343331,1753943440757,-460.0,0.00019419,2]
[376343332,1753943440767,-460.0,0.00019419,2]
[376343333,1753943440777,-460.0,0.00019419,2]
[376343334,1753943440786,-460.0,0.00019419,2]
[376343335,1753943440796,-460.0,0.00019419,2]
[376343336,1753943440805,-460.0,0.00019419,2]
[376343337,1753943440815,-460.0,0.00019419,2]
[376343338,1753943440824,-460.0,0.00019419,2]
[376343339,1753943440833,-462.10692593,0.00019419,2]
[376343340,1753943440843,-460.0,0.00019419,2]
[376343341,1753943440852,-461.40512701,0.00019419,2]
[376343342,1753943440862,-460.0,0.00019419,2]
[376343343,1753943440871,-460.0,0.00019419,2]
[376343344,1753943440881,-460.0,0.00019419,2]
[376343346,1753943440892,-460.0,0.00019419,2]
[376343348,1753943440904,-460.0,0.00019419,2]
[376343350,1753943440914,-469.05595758,0.00019419,2]
[376343352,1753943440923,-460.0,0.00019419,2]
[376343353,1753943440933,-460.0,0.00019419,2]
[376343354,1753943440942,-467.25050646,0.00019419,2]
[376343356,1753943440953,-465.85782512,0.00019419,2]
[376343357,1753943440963,-460.0,0.00019419,2]
[376343358,1753943440973,-460.0,0.00019419,2]
[376343359,1753943440983,-460.0,0.00019419,2]
[376343360,1753943440993,-460.0,0.00019419,2]
[376343361,1753943441003,-460.0,0.00019419,2]
[376343362,1753943441014,-460.0,0.00019419,2]
[376343363,1753943441025,-460.0,0.00019419,2]
[376343364,1753943441036,-460.0,0.00019419,2]
[376343365,1753943441046,-460.0,0.00019419,2]
[376343366,1753943441058,-460.0,0.00019419,2]
[376343367,1753943441067,-464.62487903,0.00019419,2]
[376343368,1753943441077,-460.0,0.00019419,2]
[376343369,1753943441086,-460.0,0.00019419,2]
[376343370,1753943441095,-460.0,0.00019419,2]
[376343371,1753943441105,-2146.58,0.00019419,2]
[376343372,1753943441114,-449.09634769,0.00019419,2]
[376343373,1753943441123,-460.0,0.00019419,2]
[376343374,1753943441133,-460.0,0.00019419,2]
[376343375,1753943441143,-460.0,0.00019419,2]
[376343376,1753943441153,-460.0,0.00019419,2]
[376343377,1753943441163,-460.0,0.00019419,2]
[376343378,1753943441173,-460.0,0.00019419,2]
[376343379,1753943441182,-634.95,0.00019419,2]
[376343380,1753943441192,-460.0,0.00019419,2]
[376343381,1753943441202,-460.0,0.00019419,2]
[376343382,1753943441211,-460.0,0.00019419,2]
[376343383,1753943441220,-460.0,0.00019419,2]
[376343384,1753943441229,-460.0,0.00019419,2]
[376343385,1753943441238,-460.0,0.00019419,2]
[376343386,1753943441247,-460.0,0.00019419,2]
[376343387,1753943441256,-460.0,0.00019419,2]
[376343388,1753943441265,-717.49,0.00019419,2]
[376343389,1753943441275,-460.0,0.00019419,2]
[376343390,1753943441284,-466.77363965,0.00019419,2]
[376343391,1753943441293,-464.38877077,0.00019419,2]
[376343392,1753943441303,-460.0,0.00019419,2]
[376343393,1753943441312,-460.0,0.00019419,2]
[376343394,1753943441321,-460.0,0.00019419,2]
[376343395,1753943441331,-460.0,0.00019419,2]
[376343396,1753943441344,-940.16,0.00019419,2]
[376343397,1753943441353,-460.0,0.00019419,2]
[376343398,1753943441363,-467.46209804,0.00019419,2]
[376343399,1753943441373,-460.0,0.00019419,2]
[376343400,1753943441383,-460.0,0.00019419,2]
[376343401,1753943441392,-523.71,0.00019419,2]
[376343402,1753943441401,-460.0,0.00019419,2]
[376343403,1753943441556,-460.0,0.00019419,2]
[376343404,1753943441566,-232.63119231,0.00019419,2]
[376343405,1753943441575,-460.0,0.00019419,2]
[376343406,1753943441585,-460.0,0.00019419,2]
[376343407,1753943441604,-495.57878909,0.00019419,2]
[376343408,1753943441615,-370000.0,0.0001942,2]
[376343409,1753943441625,-1493.89,0.00019452,2]
[376343410,1753943441636,-460.0,0.00019452,2]
[376343411,1753943441647,-816.61,0.00019452,2]
[376343412,1753943441658,-460.0,0.00019452,2]
[376343413,1753943441667,-860.91,0.00019452,2]
[376343414,1753943441677,-276.0464847,0.00019452,2]
[376343415,1753943441687,-579.49,0.00019452,2]
[376343416,1753943441697,-460.0,0.00019452,2]
[376343417,1753943441713,-460.0,0.00019452,2]
[376343418,1753943441722,-460.0,0.00019452,2]
[376343419,1753943441732,-460.0,0.00019452,2]
[376343420,1753943441743,-460.0,0.00019452,2]
[376343421,1753943441752,-740.27,0.00019452,2]
[376343422,1753943441762,-660.69,0.00019452,2]
[376343423,1753943441771,-460.0,0.00019452,2]
[376343424,1753943441782,-460.0,0.00019452,2]
[376343425,1753943441791,-460.0,0.00019452,2]
[376343426,1753943441801,-460.0,0.00019452,2]
[376343427,1753943441811,-460.0,0.00019452,2]
[376343428,1753943441821,-460.0,0.00019452,2]
[376343429,1753943441830,-460.0,0.00019452,2]
[376343430,1753943441843,-460.0,0.00019452,2]
[376343431,1753943441853,-1615.41,0.00019452,2]
[376343432,1753943441863,-460.0,0.00019452,2]
[376343433,1753943441873,-460.0,0.00019452,2]
[376343434,1753943441884,-427.32035153,0.00019473,2]
[376343435,1753943441894,-500.0,0.00019473,2]
[376343436,1753943441904,-500.0,0.00019473,2]
[376343437,1753943441914,-500.0,0.00019473,2]
[376343438,1753943441923,-500.0,0.00019473,2]
[376343439,1753943441933,-500.0,0.00019473,2]
[376343440,1753943441942,-500.0,0.00019473,2]
[376343441,1753943441952,-500.0,0.00019473,2]
[376343442,1753943441962,-531.81224926,0.00019473,2]
[376343443,1753943441972,-500.0,0.00019473,2]
[376343444,1753943441981,-512.58752256,0.00019473,2]
[376343445,1753943441992,-500.0,0.00019473,2]
[376343446,1753943442001,-502.04510931,0.00019473,2]
[376343447,1753943442011,-502.94869412,0.00019473,2]
[376343448,1753943442020,-213.69506684,0.00019473,2]
[376343449,1753943442030,-501.99621775,0.00019473,2]
[376343450,1753943442039,-502.29650842,0.00019473,2]
[376343451,1753943442049,-460.0,0.00019517,2]
[376343452,1753943442059,-460.0,0.00019517,2]
[376343453,1753943442068,-460.0,0.00019517,2]
[376343454,1753943442078,-460.0,0.00019517,2]
[376343455,1753943442087,-460.0,0.00019517,2]
[376343456,1753943442097,-460.0,0.00019517,2]
[376343457,1753943442107,-460.0,0.00019517,2]
[376343458,1753943442116,-460.0,0.00019517,2]
[376343459,1753943442127,-460.0,0.00019517,2]
[376343460,1753943442136,-460.0,0.00019517,2]
[376343461,1753943442145,-460.0,0.00019517,2]
[376343462,1753943442156,-460.0,0.00019517,2]
[376343463,1753943442166,-460.0,0.00019517,2]
[376343464,1753943442175,-460.0,0.00019517,2]
[376343465,1753943442186,-460.0,0.00019517,2]
[376343466,1753943442202,-460.0,0.00019517,2]
[376343467,1753943442212,-460.0,0.00019517,2]
[376343468,1753943442221,-460.0,0.00019517,2]
[376343469,1753943442231,-460.0,0.00019517,2]
[376343470,1753943442240,-460.0,0.00019517,2]
[376343471,1753943442250,-460.0,0.00019517,2]
[376343472,1753943442259,-460.0,0.00019517,2]
[376343473,1753943442269,-1056.03,0.00019517,2]
[376343474,1753943442278,-460.0,0.00019517,2]
[376343475,1753943442288,-460.0,0.00019517,2]